[Event "Early-Titled-Tuesday-Blitz-March-12-2024"]
[Site "Chess.com"]
[Date "2024.03.12"]
[Round "6"]
[White "nelsi"]
[Black "matagordo"]
[Result "0-1"]
[WhiteElo "2416"]
[BlackElo "2266"]
[TimeControl "180+1"]
[EndTime "9:05:57 PDT"]
[Termination "matagordo won on time"]

1. e4 {[%clk 0:03:00.9]} 1... e6 {[%clk 0:02:57.1]} 2. d4 {[%clk 0:03:00.5]}
2... d5 {[%clk 0:02:57]} 3. Be3 {[%clk 0:03:00.7]} 3... Nc6 {[%clk 0:02:46.1]}
4. f3 {[%clk 0:02:53.4]} 4... dxe4 {[%clk 0:02:40]} 5. Nc3 {[%clk 0:02:46.9]}
5... exf3 {[%clk 0:02:39]} 6. Nxf3 {[%clk 0:02:46.9]} 6... Nf6 {[%clk
0:02:33.1]} 7. Bd3 {[%clk 0:02:43.2]} 7... Bb4 {[%clk 0:02:23.9]} 8. O-O {[%clk
0:02:41.4]} 8... O-O {[%clk 0:02:21.1]} 9. Qe1 {[%clk 0:02:39.2]} 9... Re8
{[%clk 0:02:16.3]} 10. Qh4 {[%clk 0:02:38.3]} 10... Ne7 {[%clk 0:02:15.2]} 11.
Ng5 {[%clk 0:02:27.7]} 11... h6 {[%clk 0:01:54.8]} 12. Rxf6 {[%clk 0:01:53.7]}
12... Nf5 {[%clk 0:01:51.5]} 13. Rxf5 {[%clk 0:00:32.1]} 13... exf5 {[%clk
0:01:48.7]} 14. Bd2 {[%clk 0:00:11.7]} 14... hxg5 {[%clk 0:01:47.9]} 15. Bxg5
{[%clk 0:00:11.8]} 15... Be7 {[%clk 0:01:43.3]} 16. Bxe7 {[%clk 0:00:07]} 16...
Qxe7 {[%clk 0:01:44.2]} 17. Qf2 {[%clk 0:00:04.3]} 17... Qe3 {[%clk 0:01:37.7]}
18. Rf1 {[%clk 0:00:04]} 18... Qxf2+ {[%clk 0:01:33]} 19. Kxf2 {[%clk
0:00:04.9]} 19... Be6 {[%clk 0:01:30.5]} 20. d5 {[%clk 0:00:04.5]} 20... Bd7
{[%clk 0:01:28.3]} 21. Kg3 {[%clk 0:00:05.1]} 21... Re3+ {[%clk 0:01:24.4]} 22.
Kf4 {[%clk 0:00:05.1]} 22... Rae8 {[%clk 0:01:22.2]} 23. h4 {[%clk 0:00:05]}
23... g6 {[%clk 0:01:17.5]} 24. h5 {[%clk 0:00:03.9]} 24... Kg7 {[%clk
0:01:15.7]} 25. hxg6 {[%clk 0:00:03.9]} 25... fxg6 {[%clk 0:01:13.9]} 26. Rh1
{[%clk 0:00:04]} 26... Re1 {[%clk 0:01:07.2]} 27. Rxe1 {[%clk 0:00:03.9]} 27...
Rxe1 {[%clk 0:01:08.1]} 28. Ne2 {[%clk 0:00:02.4]} 28... Kf6 {[%clk 0:01:05.7]}
29. Kf3 {[%clk 0:00:01.7]} 29... g5 {[%clk 0:01:04.1]} 30. Kf2 {[%clk
0:00:02.6]} 30... Ra1 {[%clk 0:00:59.9]} 31. a3 {[%clk 0:00:02.8]} 31... f4
{[%clk 0:00:52]} 32. Kf3 {[%clk 0:00:02.7]} 32... Rf1+ {[%clk 0:00:48.9]} 33.
Ke4 {[%clk 0:00:03.2]} 33... Bf5+ {[%clk 0:00:40.8]} 34. Kd4 {[%clk 0:00:03.7]}
34... Bxd3 {[%clk 0:00:40.6]} 35. Kxd3 {[%clk 0:00:04.6]} 35... Ke5 {[%clk
0:00:37.3]} 36. c4 {[%clk 0:00:04.2]} 36... Rf2 {[%clk 0:00:36.8]} 37. Nd4
{[%clk 0:00:03.3]} 37... Rxb2 {[%clk 0:00:35.1]} 38. Nb5 {[%clk 0:00:03.3]}
38... Rxb5 {[%clk 0:00:32.6]} 39. cxb5 {[%clk 0:00:04.2]} 39... Kxd5 {[%clk
0:00:33.1]} 40. a4 {[%clk 0:00:04.5]} 40... Kc5 {[%clk 0:00:32.6]} 41. Ke4
{[%clk 0:00:04.9]} 41... a6 {[%clk 0:00:24.1]} 42. bxa6 {[%clk 0:00:04.3]} 42...
bxa6 {[%clk 0:00:25]} 43. Kf5 {[%clk 0:00:04.8]} 43... Kd4 {[%clk 0:00:23.9]}
44. Kxg5 {[%clk 0:00:05.2]} 44... Ke4 {[%clk 0:00:24]} 45. Kg4 {[%clk
0:00:04.6]} 45... c5 {[%clk 0:00:24.3]} 46. g3 {[%clk 0:00:02.9]} 46... fxg3
{[%clk 0:00:24]} 47. Kxg3 {[%clk 0:00:02.4]} 47... c4 {[%clk 0:00:24.6]} 0-1

[Event "Early-Titled-Tuesday-Blitz-March-12-2024"]
[Site "Chess.com"]
[Date "2024.03.12"]
[Round "6"]
[White "Zohid6"]
[Black "Skatchkov_V"]
[Result "1-0"]
[WhiteElo "2896"]
[BlackElo "2674"]
[TimeControl "180+1"]
[EndTime "9:06:01 PDT"]
[Termination "Zohid6 won by resignation"]

1. e4 {[%clk 0:03:00.9]} 1... e5 {[%clk 0:02:57.1]} 2. Nf3 {[%clk 0:03:00.9]}
2... Nf6 {[%clk 0:02:55.6]} 3. Nxe5 {[%clk 0:02:56.2]} 3... d6 {[%clk
0:02:55.4]} 4. Nd3 {[%clk 0:02:56.5]} 4... Nxe4 {[%clk 0:02:53.9]} 5. Qe2 {[%clk
0:02:56.4]} 5... Qe7 {[%clk 0:02:53.3]} 6. Nf4 {[%clk 0:02:56.6]} 6... Nc6
{[%clk 0:02:51.4]} 7. Nd5 {[%clk 0:02:56]} 7... Nd4 {[%clk 0:02:51.8]} 8. Nxe7
{[%clk 0:02:55.3]} 8... Nxe2 {[%clk 0:02:49.6]} 9. Nd5 {[%clk 0:02:55.3]} 9...
Nd4 {[%clk 0:02:09.1]} 10. d3 {[%clk 0:02:54.5]} 10... Nc5 {[%clk 0:01:42.3]}
11. Na3 {[%clk 0:02:33.2]} 11... Nde6 {[%clk 0:01:18.9]} 12. c3 {[%clk
0:02:23.5]} 12... c6 {[%clk 0:01:18]} 13. Ne3 {[%clk 0:02:23.1]} 13... d5 {[%clk
0:01:17.6]} 14. d4 {[%clk 0:02:23.3]} 14... Ne4 {[%clk 0:01:18]} 15. f3 {[%clk
0:02:21.3]} 15... Nd6 {[%clk 0:01:02.6]} 16. Kf2 {[%clk 0:02:06.7]} 16... Be7
{[%clk 0:00:57.2]} 17. Bd3 {[%clk 0:02:05.9]} 17... Bd7 {[%clk 0:00:45.4]} 18.
Re1 {[%clk 0:02:00.7]} 18... O-O-O {[%clk 0:00:44]} 19. Nac2 {[%clk 0:01:59.2]}
19... Rde8 {[%clk 0:00:42]} 20. b3 {[%clk 0:01:57.1]} 20... Nf4 {[%clk
0:00:40.4]} 21. Bf1 {[%clk 0:01:54.7]} 21... h5 {[%clk 0:00:38.5]} 22. g3 {[%clk
0:01:41.3]} 22... Nh3+ {[%clk 0:00:38.3]} 23. Kg2 {[%clk 0:01:36.7]} 23... h4
{[%clk 0:00:38.7]} 24. c4 {[%clk 0:01:36.3]} 24... dxc4 {[%clk 0:00:37.8]} 25.
bxc4 {[%clk 0:01:36.1]} 25... Bf6 {[%clk 0:00:37.1]} 26. Bd2 {[%clk 0:01:28.2]}
26... hxg3 {[%clk 0:00:36.6]} 27. hxg3 {[%clk 0:01:27.6]} 27... Ng5 {[%clk
0:00:34.8]} 28. Ng4 {[%clk 0:01:22.7]} 28... Bd8 {[%clk 0:00:26.2]} 29. Bd3
{[%clk 0:01:13.1]} 29... f5 {[%clk 0:00:19]} 30. Ne5 {[%clk 0:01:06.1]} 30...
Be6 {[%clk 0:00:19.2]} 31. Ne3 {[%clk 0:00:54.3]} 31... f4 {[%clk 0:00:15.3]}
32. gxf4 {[%clk 0:00:50.4]} 32... Bh3+ {[%clk 0:00:15.9]} 33. Kg3 {[%clk
0:00:38]} 33... Ne6 {[%clk 0:00:16.3]} 34. Ng6 {[%clk 0:00:37.4]} 34... Rh6
{[%clk 0:00:14]} 35. Rh1 {[%clk 0:00:36.3]} 35... Nxd4 {[%clk 0:00:03.7]} 36.
Rxh3 {[%clk 0:00:28.1]} 36... Rxe3 {[%clk 0:00:03.4]} 37. Bxe3 {[%clk
0:00:20.6]} 37... N4f5+ {[%clk 0:00:03.9]} 38. Kh2 {[%clk 0:00:18.9]} 38... Rxg6
{[%clk 0:00:04.2]} 39. Bf2 {[%clk 0:00:15.5]} 39... Re6 {[%clk 0:00:04.6]} 40.
c5 {[%clk 0:00:15.5]} 40... Nb5 {[%clk 0:00:01.3]} 41. Bxf5 {[%clk 0:00:15.4]}
1-0

[Event "Early-Titled-Tuesday-Blitz-March-12-2024"]
[Site "Chess.com"]
[Date "2024.03.12"]
[Round "6"]
[White "Grandelicious"]
[Black "wonderfultime"]
[Result "0-1"]
[WhiteElo "2874"]
[BlackElo "3062"]
[TimeControl "180+1"]
[EndTime "9:06:05 PDT"]
[Termination "wonderfultime won by resignation"]

1. Nf3 {[%clk 0:03:00.9]} 1... d5 {[%clk 0:02:59.2]} 2. e3 {[%clk 0:03:01]} 2...
Nf6 {[%clk 0:02:54.9]} 3. c4 {[%clk 0:03:01.3]} 3... c6 {[%clk 0:02:54.8]} 4.
Qc2 {[%clk 0:02:59.6]} 4... Bg4 {[%clk 0:02:51.7]} 5. Ne5 {[%clk 0:02:57]} 5...
Bh5 {[%clk 0:02:52]} 6. cxd5 {[%clk 0:02:56.7]} 6... Nxd5 {[%clk 0:02:24]} 7.
Nc3 {[%clk 0:02:56.5]} 7... e6 {[%clk 0:02:23.2]} 8. d4 {[%clk 0:02:47.1]} 8...
Be7 {[%clk 0:02:14.9]} 9. Qb3 {[%clk 0:02:20.2]} 9... Qb6 {[%clk 0:02:09.3]} 10.
g4 {[%clk 0:02:12.5]} 10... Bg6 {[%clk 0:02:05.4]} 11. h4 {[%clk 0:02:05.6]}
11... Qxb3 {[%clk 0:01:38.1]} 12. axb3 {[%clk 0:02:06.5]} 12... Nb4 {[%clk
0:01:38.8]} 13. Kd2 {[%clk 0:01:44.8]} 13... Nd7 {[%clk 0:01:15.4]} 14. Nxd7
{[%clk 0:01:14.5]} 14... Kxd7 {[%clk 0:01:16.3]} 15. h5 {[%clk 0:01:06.6]} 15...
Bc2 {[%clk 0:01:16.3]} 16. Ra3 {[%clk 0:01:06.5]} 16... h6 {[%clk 0:01:00]} 17.
Bg2 {[%clk 0:00:56.9]} 17... Bh7 {[%clk 0:00:57.5]} 18. Ne4 {[%clk 0:00:52.2]}
18... Rhd8 {[%clk 0:00:56.6]} 19. Ke2 {[%clk 0:00:49.9]} 19... Ke8 {[%clk
0:00:51.8]} 20. Bd2 {[%clk 0:00:47.6]} 20... a6 {[%clk 0:00:39.1]} 21. Ra4
{[%clk 0:00:46.4]} 21... Nd5 {[%clk 0:00:39]} 22. Rc1 {[%clk 0:00:45]} 22... f5
{[%clk 0:00:36.1]} 23. gxf5 {[%clk 0:00:42.4]} 23... exf5 {[%clk 0:00:37]} 24.
Nc5 {[%clk 0:00:40.7]} 24... Bxc5 {[%clk 0:00:37.3]} 25. Rxc5 {[%clk 0:00:39.6]}
25... Bg8 {[%clk 0:00:38.2]} 26. b4 {[%clk 0:00:34]} 26... Bf7 {[%clk
0:00:38.1]} 27. Bf3 {[%clk 0:00:33.7]} 27... Rac8 {[%clk 0:00:32.3]} 28. Ra1
{[%clk 0:00:33.4]} 28... Kf8 {[%clk 0:00:31.6]} 29. Rg1 {[%clk 0:00:32.5]} 29...
Re8 {[%clk 0:00:31.8]} 30. Kf1 {[%clk 0:00:21.9]} 30... Rcd8 {[%clk 0:00:31.4]}
31. Be2 {[%clk 0:00:16.9]} 31... Rd6 {[%clk 0:00:27.2]} 32. Bf3 {[%clk
0:00:14.5]} 32... Rf6 {[%clk 0:00:18.8]} 33. Rc1 {[%clk 0:00:12.5]} 33... Nb6
{[%clk 0:00:18.9]} 34. Bc3 {[%clk 0:00:09.5]} 34... Bd5 {[%clk 0:00:19.2]} 35.
Be2 {[%clk 0:00:09.3]} 35... f4 {[%clk 0:00:19.3]} 36. exf4 {[%clk 0:00:07.4]}
36... Rxf4 {[%clk 0:00:20.2]} 37. Rg3 {[%clk 0:00:08.1]} 37... Nc4 {[%clk
0:00:14.6]} 38. Re1 {[%clk 0:00:06.1]} 38... Ne3+ {[%clk 0:00:09.8]} 39. Kg1
{[%clk 0:00:06.4]} 39... Nc2 {[%clk 0:00:10.2]} 40. Bd2 {[%clk 0:00:03.1]} 40...
Nxe1 {[%clk 0:00:10.2]} 41. Bxf4 {[%clk 0:00:02.9]} 41... Rxe2 {[%clk
0:00:10.9]} 42. Bd6+ {[%clk 0:00:03.8]} 42... Kf7 {[%clk 0:00:10]} 43. Be5
{[%clk 0:00:04.7]} 0-1

[Event "Early-Titled-Tuesday-Blitz-March-12-2024"]
[Site "Chess.com"]
[Date "2024.03.12"]
[Round "6"]
[White "Switzerlamb"]
[Black "kidagent"]
[Result "1-0"]
[WhiteElo "2558"]
[BlackElo "2323"]
[TimeControl "180+1"]
[EndTime "9:06:05 PDT"]
[Termination "Switzerlamb won on time"]

1. Nf3 {[%clk 0:03:00.7]} 1... d5 {[%clk 0:02:57.8]} 2. d4 {[%clk 0:03:00.6]}
2... Nf6 {[%clk 0:02:56.9]} 3. c4 {[%clk 0:03:01.2]} 3... c6 {[%clk 0:02:56.8]}
4. Nc3 {[%clk 0:03:01.8]} 4... dxc4 {[%clk 0:02:54.6]} 5. a4 {[%clk 0:03:01.4]}
5... Bf5 {[%clk 0:02:54.2]} 6. Nh4 {[%clk 0:03:01.6]} 6... e6 {[%clk 0:02:50.5]}
7. Nxf5 {[%clk 0:03:00.7]} 7... exf5 {[%clk 0:02:50.6]} 8. Bg5 {[%clk
0:02:59.9]} 8... Nbd7 {[%clk 0:02:48.5]} 9. e3 {[%clk 0:03:00]} 9... Qb6 {[%clk
0:02:36.6]} 10. Qc2 {[%clk 0:02:50.4]} 10... Qb3 {[%clk 0:02:17.1]} 11. Qxb3
{[%clk 0:02:50.3]} 11... cxb3 {[%clk 0:02:17.9]} 12. Bc4 {[%clk 0:02:50.5]}
12... Bb4 {[%clk 0:02:17.6]} 13. O-O {[%clk 0:02:48.2]} 13... O-O {[%clk
0:02:07.5]} 14. Bxf6 {[%clk 0:02:37.9]} 14... Nxf6 {[%clk 0:02:06.7]} 15. Bxb3
{[%clk 0:02:38.6]} 15... Rac8 {[%clk 0:01:52.4]} 16. Rac1 {[%clk 0:02:24.6]}
16... c5 {[%clk 0:01:49.1]} 17. Na2 {[%clk 0:02:24.3]} 17... Ne4 {[%clk
0:01:36.3]} 18. Bd5 {[%clk 0:02:19.3]} 18... Nd6 {[%clk 0:01:18.8]} 19. Rfd1
{[%clk 0:02:10.3]} 19... a5 {[%clk 0:01:11.9]} 20. Nxb4 {[%clk 0:01:30]} 20...
cxb4 {[%clk 0:01:10.6]} 21. f3 {[%clk 0:01:27.7]} 21... b5 {[%clk 0:01:06.1]}
22. axb5 {[%clk 0:01:15.1]} 22... Nxb5 {[%clk 0:01:05.5]} 23. Kf2 {[%clk
0:01:10]} 23... a4 {[%clk 0:00:59.6]} 24. Bc6 {[%clk 0:00:56.1]} 24... Rb8
{[%clk 0:00:56.8]} 25. Rc5 {[%clk 0:00:46.6]} 25... Nd6 {[%clk 0:00:37]} 26.
Bxa4 {[%clk 0:00:46.7]} 26... Ra8 {[%clk 0:00:34.4]} 27. Bb3 {[%clk 0:00:47]}
27... Rfb8 {[%clk 0:00:32.5]} 28. Rdc1 {[%clk 0:00:47.2]} 28... g6 {[%clk
0:00:29.6]} 29. Rd5 {[%clk 0:00:46.5]} 29... Rb6 {[%clk 0:00:19.4]} 30. Ke2
{[%clk 0:00:46.5]} 30... Kg7 {[%clk 0:00:16.8]} 31. Kd3 {[%clk 0:00:46.9]} 31...
Ra7 {[%clk 0:00:12]} 32. e4 {[%clk 0:00:46.4]} 32... fxe4+ {[%clk 0:00:11.2]}
33. fxe4 {[%clk 0:00:47.3]} 33... f5 {[%clk 0:00:10.7]} 34. e5 {[%clk
0:00:40.9]} 34... Ne4 {[%clk 0:00:10.9]} 35. Rd8 {[%clk 0:00:38.6]} 35... Re7
{[%clk 0:00:07]} 36. g3 {[%clk 0:00:36.8]} 36... h5 {[%clk 0:00:06.1]} 37. Rcc8
{[%clk 0:00:35.5]} 37... h4 {[%clk 0:00:05]} 38. gxh4 {[%clk 0:00:35.1]} 38...
g5 {[%clk 0:00:01.3]} 39. hxg5 {[%clk 0:00:32.6]} 39... Kg6 {[%clk 0:00:01.3]}
40. Rg8+ {[%clk 0:00:32.2]} 40... Kh5 {[%clk 0:00:01.6]} 41. Rcf8 {[%clk
0:00:30.4]} 41... Kg4 {[%clk 0:00:01.6]} 42. Bd1+ {[%clk 0:00:28.8]} 42... Kf4
{[%clk 0:00:01.2]} 43. Rh8 {[%clk 0:00:23.1]} 1-0

[Event "Early-Titled-Tuesday-Blitz-March-12-2024"]
[Site "Chess.com"]
[Date "2024.03.12"]
[Round "6"]
[White "PetrolulSah"]
[Black "suspiciumchess"]
[Result "0-1"]
[WhiteElo "2221"]
[BlackElo "2410"]
[TimeControl "180+1"]
[EndTime "9:06:05 PDT"]
[Termination "suspiciumchess won by resignation"]

1. d4 {[%clk 0:03:00.9]} 1... Nf6 {[%clk 0:02:57.9]} 2. c4 {[%clk 0:03:01.8]}
2... g6 {[%clk 0:02:57.8]} 3. Nc3 {[%clk 0:03:02.7]} 3... Bg7 {[%clk 0:02:58.5]}
4. e4 {[%clk 0:03:02.7]} 4... d6 {[%clk 0:02:59.1]} 5. Be2 {[%clk 0:03:02.8]}
5... O-O {[%clk 0:02:59.7]} 6. Bg5 {[%clk 0:03:02.8]} 6... h6 {[%clk 0:02:47.6]}
7. Be3 {[%clk 0:02:56.9]} 7... e5 {[%clk 0:02:47.8]} 8. d5 {[%clk 0:02:52.7]}
8... a5 {[%clk 0:02:46.8]} 9. Qd2 {[%clk 0:02:51.9]} 9... Kh7 {[%clk 0:02:47.3]}
10. h4 {[%clk 0:02:44.8]} 10... Na6 {[%clk 0:02:26.1]} 11. h5 {[%clk 0:02:43.2]}
11... g5 {[%clk 0:02:13]} 12. f3 {[%clk 0:02:42.8]} 12... Nd7 {[%clk 0:02:07.5]}
13. g4 {[%clk 0:02:42.4]} 13... Ndc5 {[%clk 0:02:07.4]} 14. Nh3 {[%clk
0:02:41.6]} 14... Bf6 {[%clk 0:02:07.7]} 15. Nf2 {[%clk 0:02:41.4]} 15... Bd7
{[%clk 0:02:03]} 16. Nd3 {[%clk 0:02:41.4]} 16... c6 {[%clk 0:01:55.1]} 17. O-O
{[%clk 0:02:39.9]} 17... Nxd3 {[%clk 0:01:45.4]} 18. Bxd3 {[%clk 0:02:36.2]}
18... Qb8 {[%clk 0:01:45.5]} 19. b3 {[%clk 0:02:34.1]} 19... Bd8 {[%clk
0:01:44.2]} 20. a3 {[%clk 0:02:33.9]} 20... Bc7 {[%clk 0:01:38.2]} 21. Rfb1
{[%clk 0:02:33.4]} 21... Qd8 {[%clk 0:01:36.2]} 22. b4 {[%clk 0:02:27.8]} 22...
Bb6 {[%clk 0:01:35.2]} 23. c5 {[%clk 0:02:14]} 23... dxc5 {[%clk 0:01:34.3]} 24.
b5 {[%clk 0:02:08.6]} 24... cxb5 {[%clk 0:01:33.1]} 25. Bxb5 {[%clk 0:02:06.6]}
25... c4 {[%clk 0:01:26.8]} 26. Bxc4 {[%clk 0:02:00.3]} 26... Bxe3+ {[%clk
0:01:25]} 27. Qxe3 {[%clk 0:02:00]} 27... Qc7 {[%clk 0:01:25.6]} 28. Bb5 {[%clk
0:01:46]} 28... Rfc8 {[%clk 0:01:20]} 29. Bxd7 {[%clk 0:01:44.3]} 29... Qxd7
{[%clk 0:01:20.9]} 30. Nb5 {[%clk 0:01:42.6]} 30... Rc5 {[%clk 0:01:18.5]} 31.
Qb3 {[%clk 0:01:36.6]} 31... Rac8 {[%clk 0:01:16.7]} 32. Ra2 {[%clk 0:01:34.7]}
32... Rc1+ {[%clk 0:00:54.6]} 33. Kg2 {[%clk 0:01:24.3]} 33... Nc5 {[%clk
0:00:49.8]} 34. Qb2 {[%clk 0:00:57.2]} 34... Nd3 {[%clk 0:00:50.2]} 35. Qb3
{[%clk 0:00:57.4]} 35... Nf4+ {[%clk 0:00:25.2]} 36. Kg3 {[%clk 0:00:55.2]}
36... R8c5 {[%clk 0:00:18.7]} 37. Rxc1 {[%clk 0:00:51.7]} 37... Rxc1 {[%clk
0:00:19.6]} 38. d6 {[%clk 0:00:46.8]} 38... Qc8 {[%clk 0:00:19.4]} 39. Qxf7+
{[%clk 0:00:43.8]} 39... Kh8 {[%clk 0:00:19.2]} 40. Qf6+ {[%clk 0:00:42]} 40...
Kh7 {[%clk 0:00:19.1]} 41. Qe7+ {[%clk 0:00:41]} 41... Kh8 {[%clk 0:00:13.5]}
42. d7 {[%clk 0:00:41.2]} 42... Rg1+ {[%clk 0:00:12.2]} 43. Kf2 {[%clk
0:00:22.6]} 43... Rg2+ {[%clk 0:00:10.3]} 44. Ke3 {[%clk 0:00:22.4]} 44... Qc1+
{[%clk 0:00:10.1]} 0-1

[Event "Early-Titled-Tuesday-Blitz-March-12-2024"]
[Site "Chess.com"]
[Date "2024.03.12"]
[Round "6"]
[White "mikheeva86"]
[Black "Eloist"]
[Result "1-0"]
[WhiteElo "2258"]
[BlackElo "2426"]
[TimeControl "180+1"]
[EndTime "9:06:08 PDT"]
[Termination "mikheeva86 won on time"]

1. e4 {[%clk 0:03:00.9]} 1... e6 {[%clk 0:02:59.2]} 2. d4 {[%clk 0:03:00.2]}
2... d5 {[%clk 0:02:59.2]} 3. exd5 {[%clk 0:03:00.9]} 3... exd5 {[%clk 0:02:59]}
4. c4 {[%clk 0:03:01.6]} 4... Nf6 {[%clk 0:02:57.6]} 5. Nc3 {[%clk 0:03:02.3]}
5... Bb4 {[%clk 0:02:56.4]} 6. Nf3 {[%clk 0:03:01.8]} 6... O-O {[%clk
0:02:55.9]} 7. Bd3 {[%clk 0:02:58.8]} 7... dxc4 {[%clk 0:02:55.5]} 8. Bxc4
{[%clk 0:02:58.6]} 8... Re8+ {[%clk 0:02:55.3]} 9. Be3 {[%clk 0:02:58.6]} 9...
Nd5 {[%clk 0:02:49.5]} 10. O-O {[%clk 0:02:54.6]} 10... Bxc3 {[%clk 0:02:22.6]}
11. bxc3 {[%clk 0:02:53.4]} 11... Rxe3 {[%clk 0:02:12.1]} 12. fxe3 {[%clk
0:02:51.2]} 12... Nxe3 {[%clk 0:02:11.1]} 13. Bxf7+ {[%clk 0:02:41.1]} 13...
Kxf7 {[%clk 0:01:51.9]} 14. Ne5+ {[%clk 0:02:36.5]} 14... Kg8 {[%clk 0:01:48.1]}
15. Qb3+ {[%clk 0:02:22]} 15... Qd5 {[%clk 0:01:43.1]} 16. Rf3 {[%clk
0:01:55.7]} 16... Qxb3 {[%clk 0:01:31.1]} 17. axb3 {[%clk 0:01:54.3]} 17... Nd5
{[%clk 0:01:20]} 18. Raf1 {[%clk 0:01:30]} 18... Nf6 {[%clk 0:01:19.2]} 19. g4
{[%clk 0:01:21]} 19... h6 {[%clk 0:01:16.1]} 20. h4 {[%clk 0:01:19.7]} 20...
Nbd7 {[%clk 0:00:44.5]} 21. g5 {[%clk 0:01:16.2]} 21... Nxe5 {[%clk 0:00:44]}
22. dxe5 {[%clk 0:01:15.2]} 22... Bg4 {[%clk 0:00:11.9]} 23. Rf4 {[%clk
0:01:12]} 23... Bh3 {[%clk 0:00:10.5]} 24. exf6 {[%clk 0:00:48.7]} 24... Bxf1
{[%clk 0:00:09.5]} 25. Kxf1 {[%clk 0:00:43]} 25... hxg5 {[%clk 0:00:09.5]} 26.
hxg5 {[%clk 0:00:40.3]} 26... gxf6 {[%clk 0:00:09.4]} 27. gxf6 {[%clk
0:00:37.4]} 27... Kf7 {[%clk 0:00:09.1]} 28. Ke2 {[%clk 0:00:37]} 28... Rd8
{[%clk 0:00:08.5]} 29. Rc4 {[%clk 0:00:23.9]} 29... c6 {[%clk 0:00:08.3]} 30.
Ra4 {[%clk 0:00:18.1]} 30... a6 {[%clk 0:00:07.8]} 31. Rf4 {[%clk 0:00:18]}
31... Rd6 {[%clk 0:00:07.6]} 32. Ke3 {[%clk 0:00:18.2]} 32... Rxf6 {[%clk
0:00:07.6]} 33. Rh4 {[%clk 0:00:17.8]} 33... Re6+ {[%clk 0:00:07.4]} 34. Kd4
{[%clk 0:00:17.4]} 34... Rd6+ {[%clk 0:00:03.3]} 35. Kc4 {[%clk 0:00:15.6]}
35... Ke6 {[%clk 0:00:02.4]} 36. Rh6+ {[%clk 0:00:14.6]} 36... Ke5 {[%clk
0:00:01.5]} 37. Rh5+ {[%clk 0:00:11.3]} 37... Ke4 {[%clk 0:00:01.5]} 38. Rh4+
{[%clk 0:00:10.6]} 38... Ke3 {[%clk 0:00:01.4]} 39. Rh3+ {[%clk 0:00:10.8]}
39... Kd2 {[%clk 0:00:01.6]} 40. Rh7 {[%clk 0:00:08.8]} 40... b5+ {[%clk
0:00:01]} 41. Kb4 {[%clk 0:00:08.6]} 1-0

[Event "Early-Titled-Tuesday-Blitz-March-12-2024"]
[Site "Chess.com"]
[Date "2024.03.12"]
[Round "6"]
[White "tarno17"]
[Black "Actuary44"]
[Result "0-1"]
[WhiteElo "2213"]
[BlackElo "2518"]
[TimeControl "180+1"]
[EndTime "9:06:12 PDT"]
[Termination "Actuary44 won by checkmate"]

1. e4 {[%clk 0:03:00.9]} 1... b6 {[%clk 0:03:00.3]} 2. d4 {[%clk 0:03:00.6]}
2... Bb7 {[%clk 0:03:00.9]} 3. Bd3 {[%clk 0:02:54]} 3... e6 {[%clk 0:03:01.5]}
4. Ne2 {[%clk 0:02:43.8]} 4... Nf6 {[%clk 0:03:01.9]} 5. Ng3 {[%clk 0:02:43]}
5... d5 {[%clk 0:03:02.1]} 6. e5 {[%clk 0:02:40.6]} 6... Nfd7 {[%clk 0:03:02.5]}
7. O-O {[%clk 0:02:32.4]} 7... c5 {[%clk 0:03:03.1]} 8. c3 {[%clk 0:02:32.1]}
8... Nc6 {[%clk 0:03:03.7]} 9. Be3 {[%clk 0:02:28]} 9... Qc7 {[%clk 0:03:04]}
10. Nd2 {[%clk 0:02:14.4]} 10... O-O-O {[%clk 0:03:04.5]} 11. Rc1 {[%clk
0:01:37.3]} 11... c4 {[%clk 0:03:03.8]} 12. Bb1 {[%clk 0:01:34.7]} 12... f5
{[%clk 0:03:04.1]} 13. b3 {[%clk 0:01:19.5]} 13... Na5 {[%clk 0:03:02.8]} 14.
bxc4 {[%clk 0:01:18]} 14... dxc4 {[%clk 0:03:02.5]} 15. Bc2 {[%clk 0:00:33.1]}
15... h6 {[%clk 0:02:58.9]} 16. f3 {[%clk 0:00:22.1]} 16... g5 {[%clk
0:02:58.8]} 17. Bf2 {[%clk 0:00:22.4]} 17... h5 {[%clk 0:02:56.2]} 18. Ba4
{[%clk 0:00:19.9]} 18... h4 {[%clk 0:02:55.2]} 19. Ne2 {[%clk 0:00:19.7]} 19...
h3 {[%clk 0:02:55.3]} 20. g3 {[%clk 0:00:16.3]} 20... g4 {[%clk 0:02:54.7]} 21.
Be1 {[%clk 0:00:10.7]} 21... a6 {[%clk 0:02:49.7]} 22. Nf4 {[%clk 0:00:10]}
22... Rh6 {[%clk 0:02:46]} 23. Bxd7+ {[%clk 0:00:06.7]} 23... Rxd7 {[%clk
0:02:42.9]} 24. Rb1 {[%clk 0:00:06.7]} 24... Qc6 {[%clk 0:02:41.2]} 25. Qe2
{[%clk 0:00:02.4]} 25... Rh8 {[%clk 0:02:37.1]} 26. Rb2 {[%clk 0:00:01.8]} 26...
Bh6 {[%clk 0:02:36.9]} 27. Nb1 {[%clk 0:00:01.8]} 27... Bxf4 {[%clk 0:02:37]}
28. gxf4 {[%clk 0:00:02.1]} 28... g3 {[%clk 0:02:37.9]} 29. Bxg3 {[%clk
0:00:01.7]} 29... Rg7 {[%clk 0:02:35.4]} 30. Nd2 {[%clk 0:00:02.1]} 30... Rhg8
{[%clk 0:02:34.7]} 31. Qf2 {[%clk 0:00:01.8]} 31... b5 {[%clk 0:01:29.4]} 32. d5
{[%clk 0:00:01.8]} 32... Qxd5 {[%clk 0:01:26.9]} 33. Qa7 {[%clk 0:00:02.4]}
33... Nc6 {[%clk 0:01:13.7]} 34. Qb6 {[%clk 0:00:02.7]} 34... Qd8 {[%clk
0:00:57.5]} 35. Qxd8+ {[%clk 0:00:02.3]} 35... Rxd8 {[%clk 0:00:58.4]} 36. a4
{[%clk 0:00:02.5]} 36... b4 {[%clk 0:00:55.8]} 37. Rc2 {[%clk 0:00:01.7]} 37...
b3 {[%clk 0:00:51.6]} 38. Rb2 {[%clk 0:00:01.8]} 38... Na5 {[%clk 0:00:51.8]}
39. Rd1 {[%clk 0:00:01.4]} 39... Rd3 {[%clk 0:00:51.6]} 40. Kf2 {[%clk
0:00:01.7]} 40... Rgd7 {[%clk 0:00:50.9]} 41. Ke2 {[%clk 0:00:01.2]} 41... Bxf3+
{[%clk 0:00:47.3]} 42. Nxf3 {[%clk 0:00:01.7]} 42... Rxd1 {[%clk 0:00:47.8]} 43.
Nd4 {[%clk 0:00:02.3]} 43... R1xd4 {[%clk 0:00:47.4]} 44. cxd4 {[%clk
0:00:02.5]} 44... Rxd4 {[%clk 0:00:48.3]} 45. Ke3 {[%clk 0:00:02.6]} 45... Rd3+
{[%clk 0:00:45.8]} 46. Ke2 {[%clk 0:00:02.9]} 46... c3 {[%clk 0:00:41.4]} 47.
Rxb3 {[%clk 0:00:02.9]} 47... Rd2+ {[%clk 0:00:38.3]} 48. Ke3 {[%clk 0:00:03.3]}
48... Nxb3 {[%clk 0:00:38.8]} 49. Be1 {[%clk 0:00:03.8]} 49... Rxh2 {[%clk
0:00:34.1]} 50. Bxc3 {[%clk 0:00:04.5]} 50... Rg2 {[%clk 0:00:33.7]} 51. Kd3
{[%clk 0:00:04.7]} 51... Rg3+ {[%clk 0:00:33.8]} 52. Kc4 {[%clk 0:00:05.2]}
52... Rxc3+ {[%clk 0:00:34.1]} 53. Kb4 {[%clk 0:00:06.1]} 53... h2 {[%clk
0:00:34.3]} 54. a5 {[%clk 0:00:06.8]} 54... h1=Q {[%clk 0:00:33.7]} 55. Ka4
{[%clk 0:00:07.4]} 55... Qc6+ {[%clk 0:00:32.3]} 56. Kb4 {[%clk 0:00:08.3]}
56... Qc5+ {[%clk 0:00:32.1]} 57. Ka4 {[%clk 0:00:08.7]} 57... Rc4+ {[%clk
0:00:30.4]} 58. Kxb3 {[%clk 0:00:08.5]} 58... Qb5+ {[%clk 0:00:30.5]} 59. Ka3
{[%clk 0:00:08.8]} 59... Ra4# {[%clk 0:00:31.2]} 0-1